fUST/lending_fUST_20240130
["ID","MTS","AMOUNT","RATE_DAILY","PERIOD"]
[313009853,1706608242054,-1525.95990677,0.00024362,2]
[313009854,1706608242063,-1774.63754482,0.00024362,2]
[313009855,1706608242073,-5376.26431622,0.00024363,2]
[313009856,1706608242086,-2775.24219034,0.00024363,2]
[313009857,1706608242098,-1993.42317959,0.00024363,2]
[313009858,1706608242111,-490.1510355,0.00024363,2]
[313009872,1706608243969,-6992.84897577,0.00024363,2]
[313009912,1706609399370,169.55715,0.00019843,2]
[313009938,1706609431693,-309.61304631,0.00020369,2]
[313009940,1706609431754,-346.18174268,0.00020369,2]
[313009985,1706609437860,-1201.1589838,0.00020369,2]
[313009987,1706609437870,-620.23996484,0.00020369,2]
[313009989,1706609437880,-155.02635448,0.0002037,2]
[313009991,1706609437889,-1485.86518994,0.0002037,2]
[313009993,1706609437898,-1268.60769879,0.00020371,2]
[313009995,1706609437907,-1584.57551026,0.00020371,2]
[313009997,1706609437917,-186.0567827,0.00020374,2]
[313009999,1706609437926,-6785.01,0.00021347,3]
[313010001,1706609437934,-5654.17,0.00021347,3]
[313010003,1706609437943,-4711.81,0.00021347,3]
[313010005,1706609437953,-2017.02620691,0.00021357,2]
[313010008,1706609437965,-4801.44904351,0.00021357,2]
[313010299,1706609440848,-3926.51,0.00021347,3]
[313010301,1706609440857,-31697.99513828,0.00021357,2]
[313010303,1706609440869,-2785.82,0.00021357,2]
[313010353,1706609442847,-4261.0,0.00021357,2]
[313010354,1706609442902,-1710.5723287,0.00021357,2]
[313010381,1706609445838,-1111.8,0.00021357,2]
[313010382,1706609459100,854.77697256,0.00019843,2]
[313010383,1706609463687,688.4260221,0.00019843,2]
[313010385,1706609472786,569.85131504,0.00019843,2]
[313010386,1706609490785,474.87609587,0.00019843,2]
[313010387,1706609508779,474.87609587,0.00019843,2]
[313010388,1706609514040,1165.54893276,0.0002,2]
[313010389,1706609530781,247.41044595,0.00019843,2]
[313010391,1706609552879,247.41044595,0.0002,2]
[313010393,1706609570916,247.41044595,0.0002,2]
[313010394,1706609588787,247.41044595,0.0002,2]
[313010395,1706609608789,247.41044595,0.0002,2]
[313010396,1706609628792,247.41044595,0.0002,2]
[313010397,1706609644786,247.41044595,0.0002,2]
[313010398,1706609662785,247.41044595,0.0002,2]
[313010399,1706609686795,395.09691174,0.0002,2]
[313010400,1706609891372,250.0,0.00019865,2]
[313010413,1706610376761,24900.0,0.00019858,2]
[313010414,1706610434337,169.716649,0.00019836,2]
[313010439,1706610631894,-1485.86518994,0.00020321,2]
[313010440,1706610631904,-155.02635448,0.00020322,2]
[313010441,1706610631913,-1584.57551026,0.00020322,2]
[313010442,1706610631922,-5216.01545379,0.00020322,2]
[313010443,1706610631932,-1856.95377279,0.00020323,2]
[313010444,1706610631941,-6007.40454113,0.00021356,2]
[313010445,1706610631950,-5030.34,0.00021369,3]
[313010448,1706610631960,-2863.73235508,0.00021369,3]
[313010450,1706610631971,-1328.21764492,0.00021369,3]
[313010453,1706610631981,-3493.29,0.00021369,3]
[313010455,1706610631991,-2911.08,0.00021369,3]
[313010457,1706610632000,-57571.63559834,0.00021379,2]
[313010497,1706610637991,-4681.25617007,0.00021379,2]
[313010504,1706610638049,-21560.41208539,0.00021379,2]
[313010506,1706610638058,-1000.0,0.00021379,2]
[313010508,1706610638067,-1000.0,0.00021379,2]
[313010510,1706610638076,-1000.0,0.00021379,2]
[313010523,1706610638185,-1000.0,0.00021379,2]
[313010525,1706610638195,-1000.0,0.00021379,2]
[313010527,1706610638206,-1000.0,0.00021379,2]
[313010529,1706610638216,-1000.0,0.00021379,2]
[313010531,1706610638225,-1000.0,0.00021379,2]
[313010533,1706610638235,-1000.0,0.00021379,2]
[313010536,1706610638245,-230.24,0.00021379,2]
[313010538,1706610638254,-303.92838354,0.000217,2]
[313010540,1706610638263,-500.0,0.00022664,2]
[313010541,1706610638273,-979.26914291,0.00023394,2]
[313010544,1706610638282,-155.03875969,0.00023397,4]
[313010545,1706610638292,-338.72404559,0.00024363,2]
[313010547,1706610638301,-199.4949389,0.00024634,2]
[313010550,1706610638310,-2254.58255248,0.00024783,2]
[313010552,1706610638320,-5000.0,0.00024783,2]
[313010554,1706610638329,-241.89734167,0.00024783,2]
[313010556,1706610638338,-7836.73806016,0.00025962,2]
[313010558,1706610638347,-2425.9,0.0002599,3]
[313010560,1706610638356,-324.14787692,0.00025997,2]
[313010562,1706610638365,-244.36978661,0.00025997,2]
[313010564,1706610638374,-155.30092263,0.00025997,2]
[313010566,1706610638384,-3637.67526345,0.00025997,2]
[313010568,1706610638393,-474.63521965,0.00025997,2]
[313010570,1706610638403,-181.87955363,0.00025997,2]
[313010572,1706610638412,-1773.01422733,0.00025997,2]
[313010574,1706610638423,-167.17885377,0.00025997,2]
[313010576,1706610638432,-489.824398,0.00025998,2]
[313010578,1706610638441,-621.68789543,0.00025998,2]
[313010580,1706610638449,-500.0,0.00025999,2]
[313010581,1706610638459,-500.0,0.00025999,2]
[313010584,1706610638468,-196.58601966,0.00025999,2]
[313010586,1706610638478,-379.27027274,0.00025999,2]
[313010588,1706610638487,-500.0,0.00025999,2]
[313010590,1706610638496,-500.0,0.00025999,2]
[313010592,1706610638505,-500.0,0.00025999,2]
[313010594,1706610638514,-500.0,0.00025999,2]
[313010596,1706610638523,-484.99458778,0.00025999,2]
[313010598,1706610638532,-500.0,0.00025999,2]
[313010600,1706610638542,-341.24259988,0.00025999,2]
[313010602,1706610638551,-500.0,0.00025999,2]
[313010604,1706610638560,-312.45203148,0.00025999,2]
[313010606,1706610638569,-500.0,0.00025999,2]
[313010607,1706610638579,-500.0,0.00025999,2]
[313010610,1706610638588,-319.15128036,0.00025999,3]
[313010612,1706610638597,-97000.0,0.00026,3]
[313010613,1706610638606,-274.95719598,0.00026728,2]
[313010615,1706610638616,-155.0,0.00027397,2]
[313010616,1706610638625,-2000.0,0.000278,7]
[313010618,1706610638635,-224.61070534,0.00027974,2]
[313010620,1706610638644,-230.97043194,0.00027974,2]
[313010622,1706610638653,-151.0,0.0002856,2]
[313010624,1706610638662,-155.0,0.00028767,2]
[313010626,1706610638671,-155.0294556,0.00029,2]
[313010628,1706610638680,-2500.0,0.00029,2]
[313010630,1706610638689,-1934.46924266,0.00029,2]
[313010632,1706610638699,-1000.0,0.00029,29]
[313010634,1706610638708,-160.0,0.000295,2]
[313010636,1706610638717,-2001.04982432,0.00029698,2]
[313010638,1706610638726,-2008.7927902,0.000298,2]
[313010640,1706610638736,-23217.13132,0.000298,2]
[313010642,1706610638745,-23217.13132,0.000298,2]
[313010645,1706610638754,-23217.13132,0.000298,2]
[313010647,1706610638763,-23217.13132,0.000298,2]
[313010649,1706610638773,-151.02416387,0.00029814,7]
[313010651,1706610638782,-167.57212832,0.00029888,2]
[313010653,1706610638792,-2918.35456013,0.00029893,2]
[313010655,1706610638801,-523.38547604,0.00029898,2]
[313010657,1706610638810,-303.28930307,0.00029898,2]
[313010659,1706610638820,-20682.64295995,0.0002999,2]
[313010661,1706610638829,-2178.2554113,0.0002999,2]
[313010663,1706610638839,-1083.94391811,0.00029993,2]
[313010665,1706610638848,-155.03875969,0.00029993,2]
[313010667,1706610638857,-297.7446522,0.00029993,2]
[313010669,1706610638866,-330.85810641,0.00029993,2]
[313010671,1706610638875,-1298.37635568,0.00029993,2]
[313010673,1706610638884,-471.13604267,0.00029993,2]
[313010675,1706610638893,-498.83794793,0.00029993,2]
[313010677,1706610638902,-259.05592725,0.00029993,2]
[313010679,1706610638911,-906.90341037,0.00029993,2]
[313010681,1706610638920,-679.47851073,0.00029993,2]
[313010683,1706610638929,-426.80252118,0.00029994,2]
[313010685,1706610638938,-156.24259621,0.00029998,2]
[313010686,1706610638947,-1294.67927842,0.00029999,2]
[313010688,1706610638956,-329.19745495,0.00029999,2]
[313010690,1706610638965,-2710.54181066,0.00029999,2]
[313010692,1706610638975,-155.01860223,0.00029999,2]
[313010695,1706610638985,-458.58470225,0.00029999,3]
[313010697,1706610638995,-1089.31922835,0.0003,3]
[313010699,1706610639005,-2212.88986339,0.0003,2]
[313010701,1706610639013,-503.07014157,0.0003,14]
[313010702,1706610639024,-3392.54123515,0.0003,2]
[313010704,1706610639033,-155.1953438,0.0003,4]
[313010706,1706610639042,-155.89246044,0.0003,4]
[313010709,1706610639052,-155.14984419,0.0003,2]
[313010710,1706610639061,-283.35776052,0.0003,4]
[313010712,1706610639070,-309.87922767,0.0003,4]
[313010715,1706610639080,-166.28403095,0.0003,10]
[313010717,1706610639090,-5727.03165162,0.0003,2]
[313010719,1706610639099,-244.56852508,0.0003,4]
[313010721,1706610639108,-155.37620403,0.0003,4]
[313010722,1706610639120,-18622.21590968,0.0003,2]
[313010725,1706610639130,-701.19167988,0.0003,2]
[313010727,1706610639140,-2851.85331801,0.0003,2]
[313010729,1706610639149,-30563.68364941,0.0003,3]
[313010731,1706610639158,-36457.0,0.0003,7]
[313010733,1706610639168,-146423.90831105,0.0003,4]
[313010735,1706610639178,-2156.6823644,0.0003,2]
[313010737,1706610639187,-689.49476826,0.0003,4]
[313010739,1706610639197,-2007.11557702,0.0003,2]
[313010741,1706610639208,-6006.002823,0.0003,2]
[313010743,1706610639218,-167.14486088,0.0003,2]
[313010745,1706610639227,-424.89147729,0.0003,2]
[313010747,1706610639236,-48929.93041132,0.0003,2]
[313010749,1706610639245,-7447.6600868,0.0003,14]
[313010751,1706610639255,-35984.08771039,0.0003,2]
[313010753,1706610639264,-2782.6134632,0.0003,2]
[313010755,1706610639274,-2722.53,0.0003,2]
[313010757,1706610639283,-154.9866,0.0003,2]
[313010759,1706610639292,-10000.0,0.0003,2]
[313010761,1706610639301,-160.0,0.0003,2]
[313010763,1706610639310,-3588.78979799,0.0003,2]
[313010918,1706610641139,-1772.66856104,0.0003,2]
[313010919,1706610641150,-685.84256605,0.0003,2]
[313010920,1706610641161,-154.8915749,0.0003,2]
[313010921,1706610641169,-2962.66466087,0.0003,45]
[313010922,1706610641178,-1468.4440451,0.0003,2]
[313010923,1706610641187,-376.35893675,0.0003,4]
[313010924,1706610641195,-2036.41,0.0003,2]
[313010925,1706610641205,-2000.0,0.0003,2]
[313010926,1706610641214,-2000.0,0.0003,2]
[313010927,1706610641223,-392.50762262,0.0003,5]
[313010928,1706610641231,-161.04161089,0.0003,5]
[313010929,1706610641240,-805.20805446,0.0003,5]
[313010930,1706610641249,-200.743718,0.0003,12]
[313010931,1706610641258,-151.0,0.0003,2]
[313010932,1706610641267,-151.34148,0.0003,2]
[313010933,1706610641276,-151.0,0.0003,2]
[313010934,1706610641285,-151.0,0.0003,2]
[313010935,1706610641295,-500.0,0.0003,11]
[313010936,1706610641304,-151.0,0.0003,2]
[313010937,1706610641313,-151.0,0.0003,2]
[313010938,1706610641323,-256.0,0.0003,2]
[313010939,1706610641332,-1500.0,0.0003,2]
[313010940,1706610641342,-1527.299686,0.0003,2]
[313010941,1706610641351,-1527.299686,0.0003,2]
[313010942,1706610641361,-2427.43392482,0.00030089,5]
[313010943,1706610641370,-247.50437882,0.000301,10]
[313010944,1706610641383,-65.10917904,0.000301,10]
[313010945,1706610641393,-198.06329184,0.0003013,2]
[313010946,1706610641402,-137.26087967,0.00030137,2]
[313010947,1706610641413,-20.63385633,0.00030137,2]
[313010948,1706610641423,-155.0,0.00030137,2]
[313010949,1706610641432,-169.18546567,0.00030292,5]
[313010987,1706610642990,-4426.09880735,0.00030292,5]
[313011035,1706611832265,-1028.78827764,0.00026688,2]
[313011127,1706611841274,-155.02480397,0.00026687,2]
[313011129,1706611841284,-828.16549515,0.00026688,2]
[313011131,1706611841293,-1470.36439806,0.00026695,2]
[313011133,1706611841305,-12439.48070249,0.00026695,2]
[313011135,1706611841315,-6759.42242454,0.00026695,2]
[313011137,1706611841326,-3605.49935526,0.00026695,2]
[313011164,1706611841507,-625.23311965,0.00026695,2]
[313011166,1706611841515,-214.536546,0.00026805,2]
[313011168,1706611841524,-719.8165514,0.00027038,2]
[313011170,1706611841534,-25696.22178418,0.00027366,2]
[313011172,1706611841550,-5833.67,0.00027366,2]
[313011335,1706612125938,-1856.95377279,0.00026678,2]
[313011336,1706612125960,-5216.01545379,0.00026678,2]
[313011337,1706612125981,-1485.86518994,0.00026679,2]
[313011338,1706612126002,-14854.0353833,0.00027209,2]
[313011339,1706612126025,-246.5312352,0.00027293,2]
[313011340,1706612126044,-621.56241516,0.00027366,2]
[313011341,1706612126064,-280.11858007,0.00027366,2]
[313011342,1706612126083,-1468.4440451,0.00027366,2]
[313011343,1706612126103,-338.72404559,0.00027366,2]
[313011344,1706612126122,-1650.19411677,0.00027366,2]
[313011345,1706612126141,-18135.09350952,0.00027366,2]
[313011346,1706612126161,-169.716649,0.00027368,2]
[313011347,1706612126182,-2149.9397613,0.00027494,2]
[313011348,1706612126201,-169.636899,0.00027639,2]
[313011349,1706612126221,-157.50269797,0.00029,2]
[313011350,1706612126243,-155.0,0.0002944,2]
[313011351,1706612126262,-1934.46924266,0.00029989,2]
[313011352,1706612126282,-2021.58,0.0002999,3]
[313011353,1706612126303,-1182.61700284,0.0002999,3]
[313011354,1706612203361,-453.46449264,0.00027356,2]
[313011355,1706612203383,-764.8494309,0.00027357,5]
[313011356,1706612203406,-155.02480397,0.00027357,4]
[313011357,1706612203427,-2292.40162656,0.00027365,2]
[313011358,1706612203449,-536.85157076,0.00027366,2]
[313011359,1706612203471,-155.0,0.0002944,2]
[313011360,1706612203492,-1934.46924266,0.00029989,2]
[313011361,1706612203514,-160.93883251,0.0002999,2]
[313011375,1706612652899,-1485.86518994,0.00025265,2]
[313011376,1706612652924,-222.95401285,0.00025266,2]
[313011377,1706612652948,-155.16104569,0.00028239,2]
[313011378,1706612652973,-1934.46924266,0.00029,2]
[313011379,1706612652999,-160.55683341,0.00029888,2]
[313011380,1706612653025,-160.55683341,0.00029966,2]
[313011381,1706612653050,-177.78521308,0.0002999,2]
[313011382,1706612653075,-1650.19411677,0.0002999,2]
[313011383,1706612653099,-280.11858007,0.0002999,2]
[313011384,1706612653125,-765.0593475,0.0002999,2]
[313011385,1706612653149,-427.27958462,0.0003,2]
[313011389,1706612787712,-155.02325349,0.00027356,4]
[313011390,1706612787738,-1934.46924266,0.00029987,2]
[313011391,1706612787760,-12116.50750385,0.00029989,2]
[313011426,1706613032292,-155.01860223,0.00027356,4]
[313011427,1706613032301,-444.44828183,0.00029392,2]
[313011428,1706613032313,-1041.41690811,0.00029392,2]
[313011429,1706613032322,-928.07154593,0.00029393,2]
[313011511,1706613038874,-1006.39769673,0.00029393,2]
[313011512,1706613038884,-155.0,0.00029399,2]
[313011513,1706613038898,-280.11858007,0.00029989,2]
[313011514,1706613038907,-1650.19411677,0.00029989,2]
[313011515,1706613038918,-765.0593475,0.00029989,2]
[313011516,1706613038928,-310.59117313,0.0002999,2]
[313011517,1706613038938,-177.1390858,0.0003,2]
[313011518,1706613038949,-829.31771081,0.0003,2]
[313011553,1706613044201,-3339.11053463,0.0003,2]
[313011555,1706613044212,-14126.2973669,0.0003,2]
[313011558,1706613044223,-2437.11328163,0.0003,2]
[313011559,1706613044234,-2008.769,0.0003,2]
[313011560,1706613044243,-1000.0,0.0003,30]
[313011561,1706613044252,-155.02046238,0.0003,4]
[313011563,1706613044262,-3105.91816038,0.0003,2]
[313011564,1706613044274,-286.86886014,0.0003,2]
[313011565,1706613044283,-73.25691239,0.0003,2]
[313011573,1706613046810,-155.01550155,0.00029999,4]
[313011574,1706613046819,-1482.21607716,0.0003,2]
[313011699,1706614238629,-681.1679298,0.00027204,2]
[313011702,1706614238641,-1829.35161493,0.00027205,2]
[313011704,1706614238652,-979.26914291,0.00027206,2]
[313011706,1706614238663,-155.01395126,0.00027206,4]
[313011708,1706614238674,-384.04610142,0.00027356,2]
[313011711,1706614238687,-771.85320106,0.00027356,2]
[313011714,1706614238698,-96.84679894,0.00027547,2]
[313011741,1706614241774,-8079.10032506,0.00027547,2]
[313011742,1706614241784,-200.0,0.00027658,2]
[313011743,1706614241794,-312.19010403,0.000279,2]
[313011744,1706614241804,-169.636899,0.00027908,2]
[313011745,1706614241813,-1934.46924266,0.00029,2]
[313011746,1706614241823,-155.0,0.00029299,2]
[313011747,1706614241833,-175.7931547,0.00029406,2]
[313011748,1706614241842,-6344.52701045,0.0003,2]
[313011749,1706614241851,-4772.84691586,0.0003,2]
[313011750,1706614241861,-1027.91083157,0.0003,2]
[313011751,1706614241871,-376.35893675,0.0003,4]
[313011752,1706614241880,-2217.15140449,0.0003,4]
[313011753,1706614241890,-17087.2415583,0.0003,14]
[313011754,1706614241904,-7300.24438964,0.0003,14]
[313011755,1706614241913,-3392.78702052,0.0003,2]
[313011756,1706614241923,-244.61431091,0.0003,4]
[313011757,1706614241932,-503.13834487,0.0003,14]
[313011758,1706614241942,-239.0,0.0003,2]
[313011759,1706614241951,-1544.28,0.00030083,3]
[313011760,1706614241960,-1286.9,0.00030083,3]
[313011761,1706614241969,-1072.42,0.00030083,3]
[313011762,1706614241980,-21764.75611688,0.00030093,4]
[313011763,1706614241989,-157.894736,0.00030137,2]
[313011764,1706614241999,-643.63240811,0.00030292,5]
[313011804,1706614243559,-417.56000032,0.00030292,5]
[313011805,1706614243614,-2995.38868719,0.00030292,5]
[313011833,1706614248252,-669.58428825,0.00030289,3]
[313011869,1706614689622,-2041.75712479,0.00026916,2]
[313011870,1706614689645,-35629.9764433,0.00026917,2]
[313011871,1706614689669,-1321.29,0.0002788,3]
[313011872,1706614689690,-1585.54,0.00027881,3]
[313011873,1706614689710,-14925.87621479,0.00027886,2]
[313011874,1706614689732,-1856.95377279,0.00027887,2]
[313011875,1706614689752,-979.26914291,0.00027887,2]
[313011876,1706614689772,-1485.86518994,0.00027888,2]
[313011877,1706614689792,-303.92838354,0.00027889,2]
[313011878,1706614689814,-620.23996484,0.0002789,2]
[313011879,1706614689837,-18927.35300975,0.0002789,2]
[313011880,1706614689857,-1590.95075335,0.00027891,2]
[313011940,1706615137165,13645.69781045,0.0003,120]
[313012049,1706615438427,-979.26914291,0.00026605,2]
[313012050,1706615438437,-2005.37316766,0.00026606,2]
[313012051,1706615438446,-170.802432,0.00026616,2]
[313012052,1706615438456,-524.5023181,0.00026633,2]
[313012053,1706615438465,-243.016313,0.00026887,2]
[313012054,1706615438474,-2737.83754484,0.00027879,2]
[313012055,1706615438485,-12525.36445267,0.00027879,2]
[313012056,1706615438496,-4885.36552173,0.00027879,2]
[313012057,1706615438507,-1564.12900872,0.00027879,2]
[313012058,1706615438516,-1101.07,0.0002788,3]
[313012059,1706615438525,-917.56,0.0002788,3]
[313012060,1706615438534,-764.63,0.0002788,3]
[313012061,1706615438543,-194.17248079,0.00027887,2]
[313012062,1706615438552,-2956.79959735,0.00027888,2]
[313012070,1706615440912,-637.19,0.0002788,3]
[313012072,1706615440922,-34847.21603168,0.00027888,2]
[313012073,1706615440932,-2040.50242111,0.00027889,2]
[313012074,1706615440944,-303.58636653,0.0002789,2]
[313012075,1706615440953,-14121.68993314,0.0002789,2]
[313012076,1706615440963,-1650.12295586,0.00027892,2]
[313012077,1706615440973,-160.55683341,0.00027893,2]
[313012078,1706615440983,-325.34050443,0.00027993,2]
[313012079,1706615440992,-160.55683341,0.00028661,2]
[313012080,1706615441001,-325.10025211,0.00028777,4]
[313012081,1706615441010,-155.0,0.00029399,2]
[313012082,1706615441019,-160.55683341,0.00029429,2]
[313012083,1706615441030,-3340.9928411,0.0003,2]
[313012084,1706615441039,-2374.95091436,0.0003,2]
[313012085,1706615441049,-503.13834487,0.0003,14]
[313012086,1706615441059,-244.61431091,0.0003,4]
[313012087,1706615441068,-166.31773331,0.0003,10]
[313012088,1706615441077,-300.0,0.0003,4]
[313012089,1706615441088,-1027.91083157,0.0003,2]
[313012090,1706615441096,-376.35893675,0.0003,4]
[313012091,1706615441105,-223.0,0.0003,2]
[313012092,1706615441114,-157.894736,0.00030137,2]
[313012093,1706615441124,-160.55683341,0.00030197,2]
[313012094,1706615441133,-5662.66167902,0.00030198,3]
[313012095,1706615441143,-29841.70792188,0.00030199,2]
[313012096,1706615441152,-1679.54656729,0.00030267,4]
[313012097,1706615441161,-1027.07645131,0.00030288,4]
[313012098,1706615441170,-240.9677579,0.00030289,4]
[313012111,1706615443612,-15.13775709,0.00030289,4]
[313012112,1706615443623,-892.48297398,0.00030289,4]
[313012159,1706615447177,-286.90422166,0.00030289,4]
[313012160,1706615447187,-948.99966908,0.00030289,4]
[313012166,1706615447232,-251.00033092,0.00030289,4]
[313012167,1706615447241,-500.0,0.00030291,2]
[313012169,1706615447251,-5882.0224561,0.00030292,5]
[313012171,1706615447260,-1034.76337541,0.00030292,4]
[313012173,1706615447269,-329.63381135,0.00030297,4]
[313012175,1706615447279,-534.09930615,0.00030297,4]
[313012182,1706615447382,-0.02826038,0.00030297,4]
[313012368,1706616638016,-688.96127348,0.00027307,2]
[313012370,1706616638026,-5216.01545379,0.00027307,2]
[313012372,1706616638036,-1774.63754482,0.00027308,2]
[313012374,1706616638045,-155.01240099,0.00027324,2]
[313012376,1706616638054,-2292.40162656,0.00027353,2]
[313012378,1706616638064,-455.62606401,0.00027357,2]
[313012380,1706616638074,-39285.9134568,0.00027733,2]
[313012382,1706616638083,-168.99206226,0.00027999,3]
[313012384,1706616638092,-2000.0,0.00028,2]
[313012386,1706616638102,-2000.0,0.0002801,2]
[313012388,1706616638111,-2000.0,0.0002802,2]
[313012390,1706616638120,-3014.257855,0.0002803,2]
[313012392,1706616638129,-216.89366962,0.00028099,2]
[313012394,1706616638138,-727.89974759,0.00028782,4]
[313012396,1706616638147,-155.0,0.00029296,2]
[313012398,1706616638157,-1239.76,0.0002999,3]
[313012400,1706616638168,-1033.14,0.0002999,3]
[313012402,1706616638180,-860.95,0.0002999,3]
[313012404,1706616638189,-717.46,0.0002999,3]
[313012406,1706616638198,-310.59117313,0.0003,4]
[313012408,1706616638207,-3340.9928411,0.0003,2]
[313012410,1706616638216,-5999.999999,0.0003,2]
[313012412,1706616638225,-260.0,0.0003,2]
[313012414,1706616638234,-503.13834487,0.0003,14]
[313012416,1706616638245,-2374.95091436,0.0003,2]
[313012418,1706616638255,-244.61431091,0.0003,4]
[313012420,1706616638263,-200.0,0.00030039,15]
[313012422,1706616638273,-14747.91171693,0.00030093,4]
[313012424,1706616638282,-3013.79915316,0.000302,2]
[313012426,1706616638291,-192.267121,0.000302,2]
[313012428,1706616638300,-254.21826336,0.00030294,4]
[313012430,1706616638309,-164.99939864,0.00030295,2]
[313012432,1706616638318,-423.60578128,0.00030295,2]
[313012434,1706616638327,-500.0,0.00030295,2]
[313012436,1706616638335,-43891.83438825,0.00030296,2]
[313012438,1706616638348,-4352.62,0.00030296,2]
[313012512,1706616641202,-302.8671087,0.00030296,2]
[313012513,1706616641214,-1356.39266606,0.00030296,2]
[313012514,1706616641225,-2908.61582156,0.00030296,2]
[313012549,1706616643073,-2227.16262088,0.00030296,2]
[313012550,1706616643086,-3054.48138819,0.00030296,2]
[313012551,1706616643130,-2962.07389133,0.00030296,2]
[313012566,1706616647640,-11196.05943209,0.00030296,2]
[313012697,1706617834276,-1697.98790078,0.00025449,2]
[313012698,1706617834285,-500.0,0.00025449,2]
[313012699,1706617834294,-5216.01545379,0.0002545,2]
[313012700,1706617834303,-617.52240328,0.0002545,2]
[313012701,1706617834313,-573.5089035,0.00025451,2]
[313012702,1706617834322,-1485.86518994,0.00025451,2]
[313012703,1706617834332,-1584.57551026,0.00025452,2]
[313012704,1706617834342,-18927.35300975,0.00025452,2]
[313012705,1706617834351,-380.1947371,0.00025453,2]
[313012706,1706617834365,-639.41153281,0.00026074,2]
[313012707,1706617834374,-171.16808954,0.00026075,2]
[313012708,1706617834383,-620.23996484,0.00026075,2]
[313012709,1706617834392,-161.25377487,0.00026076,2]
[313012710,1706617834403,-272.593128,0.00026081,2]
[313012711,1706617834413,-169.55336599,0.00026887,2]
[313012712,1706617834422,-15319.36600369,0.00026984,2]
[313012713,1706617834431,-2005.37316766,0.00026987,2]
[313012714,1706617834442,-15691.22789522,0.00027521,2]
[313012782,1706617840183,-300.1600001,0.00025448,2]
[313012806,1706617841331,-84.55215714,0.00025448,2]
[313012807,1706617841345,-705.74,0.00027511,3]
[313012808,1706617841356,-454.70465639,0.00027521,2]
[313012809,1706617841371,-2920.90104178,0.00027521,2]
[313012810,1706617841387,-5833.16640661,0.00027521,2]
[313012811,1706617841399,-379.81997481,0.00028196,2]
[313012812,1706617841414,-200.0,0.00028685,15]
[313012813,1706617841427,-155.0,0.000287,2]
[313012814,1706617841440,-918.07862575,0.00028781,4]
[313012815,1706617841453,-170.802432,0.00029022,2]
[313012816,1706617841464,-199.5795051,0.00029315,2]
[313012817,1706617841474,-199.5795051,0.00029315,2]
[313012818,1706617841484,-199.5795051,0.00029315,2]
[313012819,1706617841494,-199.5795051,0.00029315,2]
[313012820,1706617841506,-348.811535,0.00029478,2]
[313012821,1706617841518,-199.5795051,0.00029478,2]
[313012822,1706617841530,-153.0,0.00029478,2]
[313012823,1706617841541,-199.5795051,0.00029478,2]
[313012824,1706617841552,-153.0,0.00029478,2]
[313012825,1706617841563,-199.5795051,0.00029478,2]
[313012826,1706617841574,-199.5795051,0.00029478,2]
[313012827,1706617841585,-153.0,0.00029478,2]
[313012828,1706617841596,-199.5795051,0.00029478,2]
[313012829,1706617841608,-153.0,0.00029478,2]
[313012830,1706617841618,-153.0,0.00029478,2]
[313012831,1706617841630,-171.44405925,0.00029689,2]
[313012832,1706617841645,-333.48642529,0.00029689,2]
[313012833,1706617841658,-175.77984995,0.00029699,2]
[313012834,1706617841670,-1423.65861087,0.00029699,2]
[313012835,1706617841681,-119.32885884,0.000297,2]
[313012910,1706617843211,-445.71769287,0.000297,2]
[313012918,1706617843279,-4486.47192599,0.000297,2]
[313013036,1706618091660,-2713.90126665,0.00027372,5]
[313013037,1706618091680,-1485.86518994,0.00027373,2]
[313013038,1706618091700,-382.339269,0.00027374,2]
[313013039,1706618091720,-382.339269,0.00027374,2]
[313013040,1706618091749,-5216.01545379,0.00027374,2]
[313013041,1706618091779,-382.339269,0.00027374,2]
[313013042,1706618091803,-382.339269,0.00027374,2]
[313013043,1706618091831,-967.76382597,0.00027378,2]
[313013044,1706618091861,-155.16104569,0.00028102,2]
[313013045,1706618091889,-3973.7752016,0.00028747,2]
[313013046,1706618091916,-199.579505,0.00029315,2]
[313013047,1706618091943,-277.76,0.000295,4]
[313013048,1706618091971,-2669.49,0.0002969,3]